fUSD/lending_fUSD_20260516
["ID","MTS","AMOUNT","RATE_DAILY","PERIOD"]
[422437002,1778946659000,-300.0,0.00036276,2]
[422437003,1778946659000,-300.0,0.00036276,2]
[422437006,1778946659000,-300.0,0.00036276,2]
[422437008,1778946659000,-604.63991303,0.00036276,2]
[422437007,1778946659000,-300.0,0.00036276,2]
[422437009,1778946659000,-376.70341503,0.00036276,2]
[422436986,1778946659000,-300.0,0.00036276,2]
[422437013,1778946659000,-893.66998664,0.00036276,2]
[422436998,1778946659000,-300.0,0.00036276,2]
[422436985,1778946659000,-300.0,0.00036276,2]
[422436972,1778946659000,-300.0,0.00036276,2]
[422436984,1778946659000,-300.0,0.00036276,2]
[422437015,1778946659000,-300.0,0.00036276,2]
[422436960,1778946659000,-1095.07136273,0.00036276,2]
[422436962,1778946659000,-300.0,0.00036276,2]
[422436961,1778946659000,-300.0,0.00036276,2]
[422436959,1778946659000,-300.0,0.00036276,2]
[422436963,1778946659000,-300.0,0.00036276,2]
[422436964,1778946659000,-492.84022017,0.00036276,2]
[422436966,1778946659000,-300.0,0.00036276,2]
[422436967,1778946659000,-527.89629163,0.00036276,2]
[422436965,1778946659000,-300.0,0.00036276,2]
[422436968,1778946659000,-300.20522211,0.00036276,2]
[422436981,1778946659000,-577.38521552,0.00036276,2]
[422436970,1778946659000,-300.0,0.00036276,2]
[422436971,1778946659000,-949.2762563,0.00036276,2]
[422436973,1778946659000,-309.68315104,0.00036276,2]
[422436975,1778946659000,-300.0,0.00036276,2]
[422436974,1778946659000,-864.71533708,0.00036276,2]
[422436976,1778946659000,-1791.04776837,0.00036276,2]
[422436977,1778946659000,-300.0,0.00036276,2]
[422436983,1778946659000,-300.0,0.00036276,2]
[422436978,1778946659000,-300.0,0.00036276,2]
[422436979,1778946659000,-310.99730567,0.00036276,2]
[422436980,1778946659000,-300.0,0.00036276,2]
[422436982,1778946659000,-300.0,0.00036276,2]
[422436969,1778946659000,-300.0,0.00036276,2]
[422437014,1778946659000,-726.26438584,0.00036276,2]
[422437059,1778946659000,-300.0,0.00036276,2]
[422437016,1778946659000,-301.8794073,0.00036276,2]
[422437048,1778946659000,-300.0,0.00036276,2]
[422437045,1778946659000,-484.23291958,0.00036276,2]
[422437049,1778946659000,-568.49255588,0.00036276,2]
[422437044,1778946659000,-300.0,0.00036276,2]
[422437047,1778946659000,-300.62593298,0.00036276,2]
[422437053,1778946659000,-1095.07136273,0.00036276,2]
[422437051,1778946659000,-357.58974394,0.00036276,2]
[422437052,1778946659000,-300.0,0.00036276,2]
[422437046,1778946659000,-309.92123961,0.00036276,2]
[422437050,1778946659000,-300.0,0.00036276,2]
[422437055,1778946659000,-300.0,0.00036276,2]
[422437042,1778946659000,-300.0,0.00036276,2]
[422437054,1778946659000,-300.0,0.00036276,2]
[422437058,1778946659000,-300.0,0.00036276,2]
[422437060,1778946659000,-492.84022017,0.00036276,2]
[422437061,1778946659000,-300.0,0.00036276,2]
[422437062,1778946659000,-300.0,0.00036276,2]
[422437064,1778946659000,-395.35291276,0.00036276,2]
[422437065,1778946659000,-300.0,0.00036276,2]
[422437063,1778946659000,-604.63991303,0.00036276,2]
[422437066,1778946659000,-527.89629163,0.00036276,2]
[422437067,1778946659000,-1067.23644452,0.00036276,2]
[422437068,1778946659000,-893.66998664,0.00036276,2]
[422437011,1778946659000,-527.89629163,0.00036276,2]
[422437057,1778946659000,-300.0,0.00036276,2]
[422437043,1778946659000,-462.67989711,0.00036276,2]
[422437056,1778946659000,-300.0,0.00036276,2]
[422437036,1778946659000,-463.98731895,0.00036276,2]
[422437010,1778946659000,-478.02559862,0.00036276,2]
[422437035,1778946659000,-300.0,0.00036276,2]
[422437017,1778946659000,-300.0,0.00036276,2]
[422437012,1778946659000,-1067.23644452,0.00036276,2]
[422437018,1778946659000,-300.0,0.00036276,2]
[422437019,1778946659000,-300.0,0.00036276,2]
[422437023,1778946659000,-370.31007711,0.00036276,2]
[422437021,1778946659000,-300.0,0.00036276,2]
[422437020,1778946659000,-300.0,0.00036276,2]
[422437025,1778946659000,-949.2762563,0.00036276,2]
[422437029,1778946659000,-309.68315104,0.00036276,2]
[422437024,1778946659000,-300.0,0.00036276,2]
[422437022,1778946659000,-300.0,0.00036276,2]
[422437027,1778946659000,-300.0,0.00036276,2]
[422437026,1778946659000,-1912.98732614,0.00036276,2]
[422437033,1778946659000,-300.0,0.00036276,2]
[422437034,1778946659000,-310.99730567,0.00036276,2]
[422437039,1778946659000,-452.04263183,0.00036276,2]
[422437037,1778946659000,-300.0,0.00036276,2]
[422437038,1778946659000,-577.38521552,0.00036276,2]
[422437040,1778946659000,-300.0,0.00036276,2]
[422437041,1778946659000,-300.0,0.00036276,2]
[422437030,1778946659000,-402.35943308,0.00036276,2]
[422437031,1778946659000,-864.71533708,0.00036276,2]
[422437028,1778946659000,-1147.52562491,0.00036276,2]
[422437032,1778946659000,-300.0,0.00036276,2]
[422437119,1778946660000,-893.66998664,0.00036276,2]
[422437111,1778946660000,-468.29856168,0.00036276,2]
[422437104,1778946660000,-300.0,0.00036276,2]
[422437103,1778946660000,-300.0,0.00036276,2]
[422437105,1778946660000,-1095.07136273,0.00036276,2]
[422437108,1778946660000,-404.85871492,0.00036276,2]
[422437106,1778946660000,-300.0,0.00036276,2]
[422437109,1778946660000,-300.0,0.00036276,2]
[422437101,1778946660000,-300.0,0.00036276,2]
[422437102,1778946660000,-762.89731493,0.00036276,2]
[422437113,1778946660000,-300.0,0.00036276,2]
[422437107,1778946660000,-300.0,0.00036276,2]
[422437112,1778946660000,-492.84022017,0.00036276,2]
[422437124,1778946660000,-300.66230964,0.00036276,2]
[422437121,1778946660000,-435.55715702,0.00036276,2]
[422437110,1778946660000,-300.0,0.00036276,2]
[422437115,1778946660000,-604.63991303,0.00036276,2]
[422437118,1778946660000,-1067.23644452,0.00036276,2]
[422437116,1778946660000,-300.0,0.00036276,2]
[422437117,1778946660000,-527.89629163,0.00036276,2]
[422437114,1778946660000,-531.61779181,0.00036276,2]
[422437123,1778946660000,-300.0,0.00036276,2]
[422437133,1778946660000,-1147.52562491,0.00036276,2]
[422437125,1778946660000,-300.0,0.00036276,2]
[422437134,1778946660000,-309.68315104,0.00036276,2]
[422437122,1778946660000,-301.8794073,0.00036276,2]
[422437100,1778946660000,-309.92123961,0.00036276,2]
[422437120,1778946660000,-726.26438584,0.00036276,2]
[422437099,1778946660000,-484.23291958,0.00036276,2]
[422437074,1778946660000,-300.0,0.00036276,2]
[422437094,1778946660000,-452.04263183,0.00036276,2]
[422437069,1778946660000,-726.26438584,0.00036276,2]
[422437072,1778946660000,-300.0,0.00036276,2]
[422437070,1778946660000,-301.8794073,0.00036276,2]
[422437071,1778946660000,-300.0,0.00036276,2]
[422437073,1778946660000,-300.66230964,0.00036276,2]
[422437075,1778946660000,-515.18999599,0.00036276,2]
[422437078,1778946660000,-300.0,0.00036276,2]
[422437077,1778946660000,-949.2762563,0.00036276,2]
[422437076,1778946660000,-300.0,0.00036276,2]
[422437079,1778946660000,-1912.98732614,0.00036276,2]
[422437080,1778946660000,-344.08088588,0.00036276,2]
[422437085,1778946660000,-309.68315104,0.00036276,2]
[422437082,1778946660000,-300.0,0.00036276,2]
[422437081,1778946660000,-527.04605611,0.00036276,2]
[422437083,1778946660000,-460.05159189,0.00036276,2]
[422437084,1778946660000,-1147.52562491,0.00036276,2]
[422437090,1778946660000,-300.0,0.00036276,2]
[422437086,1778946660000,-864.71533708,0.00036276,2]
[422437088,1778946660000,-332.02545541,0.00036276,2]
[422437091,1778946660000,-463.98731895,0.00036276,2]
[422437097,1778946660000,-300.0,0.00036276,2]
[422437087,1778946660000,-475.67781689,0.00036276,2]
[422437089,1778946660000,-310.99730567,0.00036276,2]
[422437092,1778946660000,-300.0,0.00036276,2]
[422437093,1778946660000,-577.38521552,0.00036276,2]
[422437096,1778946660000,-300.0,0.00036276,2]
[422437095,1778946660000,-300.0,0.00036276,2]
[422437098,1778946660000,-300.0,0.00036276,2]
[422437130,1778946660000,-527.04605611,0.00036276,2]
[422437129,1778946660000,-1912.98732614,0.00036276,2]
[422437128,1778946660000,-300.0,0.00036276,2]
[422437164,1778946660000,-300.0,0.00036276,2]
[422437163,1778946660000,-301.8794073,0.00036276,2]
[422437165,1778946660000,-300.66230964,0.00036276,2]
[422437172,1778946660000,-527.04605611,0.00036276,2]
[422437168,1778946660000,-949.2762563,0.00036276,2]
[422437171,1778946660000,-344.08088588,0.00036276,2]
[422437170,1778946660000,-1912.98732614,0.00036276,2]
[422437169,1778946660000,-300.0,0.00036276,2]
[422437173,1778946660000,-1147.52562491,0.00036276,2]
[422437167,1778946660000,-300.0,0.00036276,2]
[422437175,1778946660000,-864.71533708,0.00036276,2]
[422437186,1778946660000,-484.23291958,0.00036276,2]
[422437185,1778946660000,-300.0,0.00036276,2]
[422437174,1778946660000,-309.68315104,0.00036276,2]
[422437179,1778946660000,-300.0,0.00036276,2]
[422437177,1778946660000,-300.0,0.00036276,2]
[422437182,1778946660000,-300.0,0.00036276,2]
[422437176,1778946660000,-310.99730567,0.00036276,2]
[422437178,1778946660000,-463.98731895,0.00036276,2]
[422437181,1778946660000,-452.04263183,0.00036276,2]
[422437180,1778946660000,-577.38521552,0.00036276,2]
[422437183,1778946660000,-300.0,0.00036276,2]
[422437184,1778946660000,-300.0,0.00036276,2]
[422437187,1778946660000,-309.92123961,0.00036276,2]
[422437189,1778946660000,-300.0,0.00036276,2]
[422437126,1778946660000,-300.0,0.00036276,2]
[422437190,1778946660000,-300.0,0.00036276,2]
[422437166,1778946660000,-300.0,0.00036276,2]
[422437161,1778946660000,-893.66998664,0.00036276,2]
[422437188,1778946660000,-300.0,0.00036276,2]
[422437160,1778946660000,-1067.23644452,0.00036276,2]
[422437162,1778946660000,-726.26438584,0.00036276,2]
[422437131,1778946660000,-344.08088588,0.00036276,2]
[422437132,1778946660000,-369.36771933,0.00036276,2]
[422437135,1778946660000,-864.71533708,0.00036276,2]
[422437136,1778946660000,-310.99730567,0.00036276,2]
[422437139,1778946660000,-300.0,0.00036276,2]
[422437137,1778946660000,-300.0,0.00036276,2]
[422437146,1778946660000,-484.23291958,0.00036276,2]
[422437138,1778946660000,-463.98731895,0.00036276,2]
[422437144,1778946660000,-300.0,0.00036276,2]
[422437142,1778946660000,-300.0,0.00036276,2]
[422437140,1778946660000,-577.38521552,0.00036276,2]
[422437141,1778946660000,-452.04263183,0.00036276,2]
[422437143,1778946660000,-300.0,0.00036276,2]
[422437127,1778946660000,-949.2762563,0.00036276,2]
[422437147,1778946660000,-309.92123961,0.00036276,2]
[422437155,1778946660000,-492.84022017,0.00036276,2]
[422437154,1778946660000,-300.0,0.00036276,2]
[422437156,1778946660000,-300.0,0.00036276,2]
[422437152,1778946660000,-300.0,0.00036276,2]
[422437145,1778946660000,-300.0,0.00036276,2]
[422437151,1778946660000,-1095.07136273,0.00036276,2]
[422437149,1778946660000,-300.0,0.00036276,2]
[422437158,1778946660000,-300.0,0.00036276,2]
[422437157,1778946660000,-604.63991303,0.00036276,2]
[422437159,1778946660000,-527.89629163,0.00036276,2]
[422437150,1778946660000,-300.0,0.00036276,2]
[422437148,1778946660000,-300.0,0.00036276,2]
[422437153,1778946660000,-572.49122105,0.00036276,2]
[422437232,1778946661000,-300.0,0.00036276,2]
[422437229,1778946661000,-390.75742779,0.00036276,2]
[422437237,1778946661000,-784.56,0.000363,120]
[422437228,1778946661000,-300.0,0.00036276,2]
[422437224,1778946661000,-575.83960885,0.00036276,2]
[422437227,1778946661000,-326.35696742,0.00036276,2]
[422437236,1778946661000,-604.63991303,0.00036276,2]
[422437226,1778946661000,-309.92123961,0.00036276,2]
[422437221,1778946661000,-300.0,0.00036276,2]
[422437219,1778946661000,-577.38521552,0.00036276,2]
[422437225,1778946661000,-484.23291958,0.00036276,2]
[422437234,1778946661000,-492.84022017,0.00036276,2]
[422437238,1778946661000,-8085.63612352,0.000365,10]
[422437230,1778946661000,-1095.07136273,0.00036276,2]
[422437233,1778946661000,-300.0,0.00036276,2]
[422437231,1778946661000,-300.0,0.00036276,2]
[422437240,1778946661000,-1007.64,0.000366,30]
[422437243,1778946661000,-162.66,0.0003669,30]
[422437239,1778946661000,-2312.0,0.00036502,11]
[422437242,1778946661000,-500.0,0.00036651,120]
[422437246,1778946661000,-299.59,0.00036769,120]
[422437241,1778946661000,-3462.94,0.00036602,30]
[422437245,1778946661000,-550.0,0.00036748,12]
[422437247,1778946661000,-1585.0,0.00036822,11]
[422437223,1778946661000,-300.0,0.00036276,2]
[422437235,1778946661000,-300.0,0.00036276,2]
[422437222,1778946661000,-300.0,0.00036276,2]
[422437203,1778946661000,-300.0,0.00036276,2]
[422437213,1778946661000,-309.68315104,0.00036276,2]
[422437197,1778946661000,-300.0,0.00036276,2]
[422437195,1778946661000,-300.0,0.00036276,2]
[422437196,1778946661000,-604.63991303,0.00036276,2]
[422437191,1778946661000,-1095.07136273,0.00036276,2]
[422437193,1778946661000,-300.0,0.00036276,2]
[422437199,1778946661000,-1067.23644452,0.00036276,2]
[422437198,1778946661000,-527.89629163,0.00036276,2]
[422437192,1778946661000,-300.0,0.00036276,2]
[422437194,1778946661000,-492.84022017,0.00036276,2]
[422437201,1778946661000,-726.26438584,0.00036276,2]
[422437211,1778946661000,-527.04605611,0.00036276,2]
[422437200,1778946661000,-893.66998664,0.00036276,2]
[422437220,1778946661000,-452.04263183,0.00036276,2]
[422437202,1778946661000,-301.8794073,0.00036276,2]
[422437205,1778946661000,-300.0,0.00036276,2]
[422437207,1778946661000,-949.2762563,0.00036276,2]
[422437210,1778946661000,-344.08088588,0.00036276,2]
[422437208,1778946661000,-300.0,0.00036276,2]
[422437206,1778946661000,-300.0,0.00036276,2]
[422437209,1778946661000,-1912.98732614,0.00036276,2]
[422437212,1778946661000,-1147.52562491,0.00036276,2]
[422437214,1778946661000,-864.71533708,0.00036276,2]
[422437215,1778946661000,-310.99730567,0.00036276,2]
[422437217,1778946661000,-463.98731895,0.00036276,2]
[422437216,1778946661000,-300.0,0.00036276,2]
[422437218,1778946661000,-300.0,0.00036276,2]
[422437204,1778946661000,-300.66230964,0.00036276,2]
[422437248,1778946661000,-350.0,0.00036849,5]
[422437244,1778946661000,-150.0,0.00036715,2]
[422437249,1778946661000,-5736.9046,0.00036886,2]
[422437279,1778946661000,-2058.4983,0.00037255,2]
[422437283,1778946661000,-5736.9046,0.00037413,2]
[422437288,1778946661000,-4410.98643255,0.0003759,2]
[422437286,1778946661000,-1000.0,0.000375,2]
[422437285,1778946661000,-2058.4983,0.00037439,2]
[422437287,1778946661000,-5736.9046,0.00037544,2]
[422437284,1778946661000,-2235.0512,0.00037413,2]
[422437290,1778946661000,-400.0,0.00037615,2]
[422437291,1778946661000,-1000.0,0.00037615,2]
[422437292,1778946661000,-1000.0,0.00037615,2]
[422437289,1778946661000,-400.0,0.00037615,2]
[422437293,1778946661000,-2058.4983,0.00037623,2]
[422437278,1778946661000,-417.0,0.00037183,2]
[422437295,1778946661000,-738.44,0.00037652,2]
[422437305,1778946661000,-284.12412572,0.00037753,120]
[422437304,1778946661000,-150.0,0.00037694,2]
[422437294,1778946661000,-221.94,0.00037652,30]
[422437301,1778946661000,-5736.9046,0.00037676,2]
[422437300,1778946661000,-203.0,0.00037654,2]
[422437297,1778946661000,-200.0,0.00037654,2]
[422437296,1778946661000,-200.0,0.00037654,2]
[422437299,1778946661000,-200.0,0.00037654,2]
[422437302,1778946661000,-2235.0512,0.00037676,2]
[422437298,1778946661000,-200.0,0.00037654,2]
[422437307,1778946661000,-5736.9046,0.00037808,2]
[422437250,1778946661000,-2058.4983,0.00036886,2]
[422437303,1778946661000,-169.19,0.0003769,3]
[422437277,1778946661000,-930.0,0.00037183,2]
[422437306,1778946661000,-1007.64,0.000378,30]
[422437281,1778946661000,-5736.9046,0.00037281,2]
[422437280,1778946661000,-472.14488087,0.00037281,31]
[422437251,1778946661000,-2235.0512,0.00036886,2]
[422437252,1778946661000,-1783.84842903,0.00036896,7]
[422437254,1778946661000,-1607.48856125,0.00036897,2]
[422437253,1778946661000,-1418.05787697,0.00036897,7]
[422437256,1778946661000,-1631.21532968,0.00036953,2]
[422437257,1778946661000,-1216.55150925,0.00036953,7]
[422437258,1778946661000,-1212.98817624,0.00036953,7]
[422437259,1778946661000,-400.0,0.0003697,2]
[422437260,1778946661000,-342.39213103,0.00037,2]
[422437262,1778946661000,-250.0,0.00037,30]
[422437264,1778946661000,-2058.4983,0.0003707,2]
[422437261,1778946661000,-150.0,0.00037,2]
[422437255,1778946661000,-1757.90154279,0.00036897,7]
[422437265,1778946661000,-5800.0,0.00037078,2]
[422437270,1778946661000,-2235.0512,0.00037149,2]
[422437276,1778946661000,-1270.0,0.00037183,2]
[422437273,1778946661000,-926.0,0.00037183,2]
[422437274,1778946661000,-3543.0,0.00037183,2]
[422437282,1778946661000,-550.0,0.00037282,13]
[422437272,1778946661000,-1354.0,0.00037183,2]
[422437275,1778946661000,-625.0,0.00037183,2]
[422437269,1778946661000,-5736.9046,0.00037149,2]
[422437266,1778946661000,-3994.60520364,0.00037078,2]
[422437263,1778946661000,-5736.9046,0.00037017,2]
[422437267,1778946661000,-73934.14983054,0.000371,2]
[422437268,1778946661000,-163.0,0.00037142,11]
[422437271,1778946661000,-209.44926332,0.0003718,2]
[422437350,1778946662000,-200.0,0.00037891,2]
[422437342,1778946662000,-200.0,0.00037891,2]
[422437345,1778946662000,-200.0,0.00037891,2]
[422437349,1778946662000,-200.0,0.00037891,2]
[422437351,1778946662000,-200.0,0.00037891,2]
[422437341,1778946662000,-200.0,0.00037891,2]
[422437334,1778946662000,-200.0,0.00037891,2]
[422437346,1778946662000,-200.0,0.00037891,2]
[422437333,1778946662000,-200.0,0.00037891,2]
[422437340,1778946662000,-200.0,0.00037891,2]
[422437330,1778946662000,-200.0,0.00037891,2]
[422437355,1778946662000,-200.0,0.00037891,2]
[422437347,1778946662000,-200.0,0.00037891,2]
[422437348,1778946662000,-200.0,0.00037891,2]
[422437343,1778946662000,-200.0,0.00037891,2]
[422437352,1778946662000,-200.0,0.00037891,2]
[422437354,1778946662000,-200.0,0.00037891,2]
[422437356,1778946662000,-200.0,0.00037891,2]
[422437353,1778946662000,-200.0,0.00037891,2]
[422437360,1778946662000,-200.0,0.00037891,2]
[422437358,1778946662000,-200.0,0.00037891,2]
[422437362,1778946662000,-3783.38074751,0.000379,2]
[422437335,1778946662000,-200.0,0.00037891,2]
[422437359,1778946662000,-200.0,0.00037891,2]
[422437344,1778946662000,-200.0,0.00037891,2]
[422437336,1778946662000,-200.0,0.00037891,2]
[422437319,1778946662000,-200.0,0.00037891,2]
[422437337,1778946662000,-200.0,0.00037891,2]
[422437363,1778946662000,-5736.9046,0.0003794,2]
[422437312,1778946662000,-200.0,0.00037891,2]
[422437308,1778946662000,-2058.4983,0.00037808,2]
[422437311,1778946662000,-205.74372144,0.0003788,2]
[422437309,1778946662000,-350.0,0.00037808,5]
[422437310,1778946662000,-550.0,0.00037816,13]
[422437315,1778946662000,-200.0,0.00037891,2]
[422437314,1778946662000,-200.0,0.00037891,2]
[422437313,1778946662000,-200.0,0.00037891,2]
[422437316,1778946662000,-200.0,0.00037891,2]
[422437318,1778946662000,-200.0,0.00037891,2]
[422437328,1778946662000,-200.0,0.00037891,2]
[422437317,1778946662000,-200.0,0.00037891,2]
[422437321,1778946662000,-200.0,0.00037891,2]
[422437320,1778946662000,-200.0,0.00037891,2]
[422437327,1778946662000,-200.0,0.00037891,2]
[422437324,1778946662000,-200.0,0.00037891,2]
[422437322,1778946662000,-200.0,0.00037891,2]
[422437325,1778946662000,-200.0,0.00037891,2]
[422437326,1778946662000,-200.0,0.00037891,2]
[422437323,1778946662000,-200.0,0.00037891,2]
[422437331,1778946662000,-200.0,0.00037891,2]
[422437332,1778946662000,-200.0,0.00037891,2]
[422437329,1778946662000,-156.0,0.00037891,2]
[422437339,1778946662000,-200.0,0.00037891,2]
[422437338,1778946662000,-200.0,0.00037891,2]
[422437361,1778946662000,-331.0,0.00037891,2]
[422437357,1778946662000,-200.0,0.00037891,2]
[422437419,1778946662000,-600.0,0.00038291,120]
[422437392,1778946662000,-309.34,0.00038259,2]
[422437394,1778946662000,-151.0,0.00038273,14]
[422437395,1778946662000,-462.3,0.00038276,60]
[422437406,1778946662000,-600.0,0.00038291,120]
[422437397,1778946662000,-2476.23,0.00038276,60]
[422437402,1778946662000,-600.0,0.00038291,120]
[422437400,1778946662000,-600.0,0.00038291,120]
[422437407,1778946662000,-600.0,0.00038291,120]
[422437398,1778946662000,-4060.23,0.00038276,60]
[422437399,1778946662000,-600.0,0.00038291,120]
[422437403,1778946662000,-600.0,0.00038291,120]
[422437401,1778946662000,-600.0,0.00038291,120]
[422437405,1778946662000,-600.0,0.00038291,120]
[422437409,1778946662000,-600.0,0.00038291,120]
[422437408,1778946662000,-600.0,0.00038291,120]
[422437411,1778946662000,-600.0,0.00038291,120]
[422437413,1778946662000,-600.0,0.00038291,120]
[422437410,1778946662000,-600.0,0.00038291,120]
[422437415,1778946662000,-600.0,0.00038291,120]
[422437418,1778946662000,-600.0,0.00038291,120]
[422437416,1778946662000,-600.0,0.00038291,120]
[422437414,1778946662000,-600.0,0.00038291,120]
[422437412,1778946662000,-600.0,0.00038291,120]
[422437417,1778946662000,-600.0,0.00038291,120]
[422437365,1778946662000,-2058.4983,0.00037992,2]
[422437390,1778946662000,-300.0,0.00038259,2]
[422437386,1778946662000,-300.0,0.00038259,2]
[422437404,1778946662000,-600.0,0.00038291,120]
[422437396,1778946662000,-1462.64,0.00038276,60]
[422437364,1778946662000,-2235.0512,0.0003794,2]
[422437391,1778946662000,-300.0,0.00038259,2]
[422437369,1778946662000,-1560.20392472,0.00038,2]
[422437366,1778946662000,-342.0,0.00038,30]
[422437368,1778946662000,-238651.24508936,0.00038,2]
[422437373,1778946662000,-155.0,0.00038,120]
[422437367,1778946662000,-1000.0,0.00038,120]
[422437374,1778946662000,-850.0,0.00038,2]
[422437370,1778946662000,-1500.0,0.00038,5]
[422437371,1778946662000,-152.0,0.00038,120]
[422437375,1778946662000,-501.118191,0.00038016,120]
[422437376,1778946662000,-500.0,0.00038016,120]
[422437379,1778946662000,-785.67210153,0.000381,30]
[422437372,1778946662000,-161.0,0.00038,120]
[422437377,1778946662000,-5736.9046,0.00038071,2]
[422437393,1778946662000,-436.65,0.00038263,10]
[422437388,1778946662000,-300.0,0.00038259,2]
[422437389,1778946662000,-300.0,0.00038259,2]
[422437385,1778946662000,-2235.0512,0.00038203,2]
[422437380,1778946662000,-785.67210151,0.000381,30]
[422437387,1778946662000,-300.0,0.00038259,2]
[422437381,1778946662000,-785.67210151,0.000381,30]
[422437382,1778946662000,-1239.9,0.00038125,30]
[422437378,1778946662000,-9368.3861182,0.000381,33]
[422437384,1778946662000,-5736.9046,0.00038203,2]
[422437383,1778946662000,-2058.4983,0.00038177,2]
[422437461,1778946663000,-12691.11304661,0.00038834,2]
[422437463,1778946663000,-550.0,0.00038884,14]
[422437456,1778946663000,-2058.499,0.0003873,2]
[422437464,1778946663000,-2000.0,0.000389,7]
[422437460,1778946663000,-152.0,0.000388,120]
[422437450,1778946663000,-82518.2146971,0.000385,2]
[422437457,1778946663000,-2235.0519,0.0003873,2]
[422437447,1778946663000,-3462.94,0.00038446,30]
[422437448,1778946663000,-5736.9046,0.00038467,2]
[422437449,1778946663000,-2235.0512,0.00038467,2]
[422437459,1778946663000,-425.87848913,0.00038781,2]
[422437467,1778946663000,-155.88086405,0.00038939,2]
[422437462,1778946663000,-155.88086405,0.00038839,2]
[422437478,1778946663000,-155.0,0.000391,120]
[422437458,1778946663000,-350.0,0.00038767,5]
[422437466,1778946663000,-181.86100806,0.00038921,2]
[422437469,1778946663000,-31314.79498176,0.00039,2]
[422437479,1778946663000,-159.06210617,0.00039103,2]
[422437468,1778946663000,-342.0,0.00039,30]
[422437472,1778946663000,-5908.87703147,0.00039,2]
[422437470,1778946663000,-167.66,0.00039,3]
[422437471,1778946663000,-1000.77287882,0.00039,2]
[422437476,1778946663000,-1237.80329437,0.00039023,2]
[422437474,1778946663000,-159.06210617,0.00039003,2]
[422437473,1778946663000,-1007.64,0.00039,30]
[422437475,1778946663000,-181.86100806,0.00039021,2]
[422437446,1778946663000,-152.0,0.000384,120]
[422437465,1778946663000,-159.06210617,0.00038903,2]
[422437445,1778946663000,-2058.4983,0.00038361,2]
[422437477,1778946663000,-155.88086405,0.00039039,2]
[422437453,1778946663000,-161.0,0.00038571,3]
[422437426,1778946663000,-5736.9046,0.00038335,2]
[422437430,1778946663000,-351.0,0.00038356,2]
[422437428,1778946663000,-400.0,0.00038356,2]
[422437424,1778946663000,-1686.0,0.00038329,120]
[422437427,1778946663000,-550.0,0.0003835,14]
[422437422,1778946663000,-600.0,0.00038291,120]
[422437420,1778946663000,-600.0,0.00038291,120]
[422437421,1778946663000,-600.0,0.00038291,120]
[422437423,1778946663000,-664.1382358,0.00038291,120]
[422437429,1778946663000,-400.0,0.00038356,2]
[422437432,1778946663000,-700.0,0.00038356,2]
[422437431,1778946663000,-700.0,0.00038356,2]
[422437443,1778946663000,-950.12,0.00038356,30]
[422437433,1778946663000,-699.0,0.00038356,2]
[422437442,1778946663000,-413.0,0.00038356,2]
[422437434,1778946663000,-300.0,0.00038356,2]
[422437437,1778946663000,-300.0,0.00038356,2]
[422437441,1778946663000,-550.0,0.00038356,2]
[422437435,1778946663000,-300.0,0.00038356,2]
[422437436,1778946663000,-199.0,0.00038356,2]
[422437439,1778946663000,-196.0,0.00038356,2]
[422437438,1778946663000,-300.0,0.00038356,2]
[422437440,1778946663000,-550.0,0.00038356,2]
[422437444,1778946663000,-1397.66,0.00038356,120]